bitfinex-derivatives/quotes_ETHF0:USTF0_20250323
["timestamp","ask_amount","ask_price","bid_price","bid_amount"]
[1742712091827,1.2957,2002.7,2002.6,2.35258]
[1742712092720,2.29453,2002.7,2002.6,2.35258]
[1742712092921,1.2957,2002.7,2002.6,2.35258]
[1742712093731,2.29453,2002.7,2002.6,2.35258]
[1742712094728,2.29453,2002.7,2002.6,1.3537]
[1742712095026,2.29453,2002.7,2002.6,2.35258]
[1742712097931,2.29453,2002.7,2002.6,1.3537]
[1742712098727,2.29453,2002.7,2002.6,2.35258]
[1742712103941,1.2957,2002.7,2002.6,2.35258]
[1742712104938,2.29453,2002.7,2002.6,2.35258]
[1742712118148,2.29453,2002.7,2002.6,1.3537]
[1742712119143,2.29453,2002.7,2002.6,2.35258]
[1742712127051,1.2957,2002.7,2002.6,2.35258]
[1742712128052,2.29453,2002.7,2002.6,2.35258]
[1742712128240,1.2957,2002.7,2002.6,2.35258]
[1742712128442,2.29453,2002.7,2002.6,2.87490519]
[1742712129350,1.2957,2002.7,2002.6,2.87490519]
[1742712129845,1.2957,2002.7,2002.6,2.87492867]
[1742712130148,2.29453,2002.7,2002.6,2.87493232]
[1742712130348,2.29453,2002.7,2002.6,2.35258]
[1742712130557,2.29453,2002.7,2002.6,2.87491813]
[1742712130747,0.79986928,2002.9,2002.6,1.87603813]
[1742712130942,1.3456,2002.9,2002.8,0.99878]
[1742712131145,1.3456,2002.9,2002.8,1.52098567]
[1742712131346,1.89937866,2003.0,2002.9,0.99873]
[1742712131545,3.24497866,2003.0,2002.9,0.99873]
[1742712131746,1.3456,2003.0,2002.9,3.05603]
[1742712138353,2.34428,2003.0,2002.9,3.05603]
[1742712138756,1.3456,2003.0,2002.9,3.05603]
[1742712140463,1.3456,2003.0,2002.9,2.36973]
[1742712140763,1.3456,2003.0,2002.7,0.6469]
[1742712140963,0.6481,2002.9,2002.8,0.99875]
[1742712141163,0.6481,2002.9,2002.8,2.26155]
[1742712141363,2.042,2002.9,2002.8,2.26155]
[1742712142763,3.04073,2002.9,2002.8,1.2628]
[1742712143859,2.042,2002.9,2002.8,1.2628]
[1742712144256,3.04073,2002.9,2002.8,1.2628]
[1742712146265,2.042,2002.9,2002.8,1.2628]
[1742712146667,3.04073,2002.9,2002.8,1.2628]
[1742712146862,2.042,2002.9,2002.8,2.26158]
[1742712147169,3.04073,2002.9,2002.8,1.2628]
[1742712147468,2.042,2002.9,2002.8,1.2628]
[1742712147667,3.04073,2002.9,2002.8,1.2628]
[1742712150464,2.042,2002.9,2002.8,1.2628]
[1742712151565,2.042,2002.9,2002.8,2.26158]
[1742712152464,2.042,2002.9,2002.8,1.2628]
[1742712153364,3.04073,2002.9,2002.8,1.2628]
[1742712159573,3.04073,2002.9,2002.8,1.78463492]
[1742712159875,3.04073,2002.9,2002.8,0.52183492]
[1742712160073,3.04073,2002.9,2002.7,2.27649]
[1742712160275,1.2822,2002.8,2002.7,2.27649]
[1742712160477,1.2822,2002.8,2002.7,1.52090452]
[1742712161671,1.2822,2002.8,2002.7,1.52089942]
[1742712163979,1.2822,2002.8,2002.7,2.19169942]
[1742712167179,1.2822,2002.8,2002.7,2.19170252]
[1742712168985,1.2822,2002.8,2002.7,2.19175383]
[1742712170779,1.2822,2002.8,2002.7,1.66959]
[1742712170981,1.2822,2002.8,2002.7,2.19181055]
[1742712172689,1.2822,2002.8,2002.7,2.19179877]
[1742712174190,1.2822,2002.8,2002.7,5.39959877]
[1742712174690,1.2822,2002.8,2002.7,4.87739]
[1742712177496,1.2822,2002.8,2002.7,6.21969]
[1742712185897,1.2822,2002.8,2002.7,6.74188156]
[1742712187101,1.2822,2002.8,2002.7,3.53408156]
[1742712189788,1.2822,2002.8,2002.7,3.53379322]
[1742712190287,1.2822,2002.8,2002.7,3.53379033]
[1742712191290,1.2822,2002.8,2002.7,1.86420033]
[1742712191499,2.28098,2002.8,2002.7,0.52190033]
[1742712193799,2.28098,2002.8,2002.7,0.52184665]
[1742712195703,2.28098,2002.8,2002.6,5.59806]
[1742712195903,2.608,2002.7,2002.6,5.59806]
[1742712196095,2.608,2002.7,2002.6,6.11984007]
[1742712196296,2.608,2002.7,2002.6,6.11984143]
[1742712196707,0.90062029,2003.0,2002.6,5.12098143]
[1742712197011,1.2665,2002.9,2002.8,0.99878]
[1742712197303,1.2665,2002.9,2002.8,2.83286143]
[1742712197806,3.28415821,2003.2,2003.0,0.99866]
[1742712198007,1.2665,2003.1,2003.0,0.99866]
[1742712199400,1.2665,2003.1,2003.0,2.32566]
[1742712205505,2.26513,2003.1,2003.0,0.99866]
[1742712206304,1.2665,2003.1,2003.0,0.99866]
[1742712207211,2.26513,2003.1,2003.0,0.99866]
[1742712207410,2.26513,2003.1,2002.9,4.20649]
[1742712207709,1.375,2003.0,2002.9,4.20649]
[1742712208018,1.375,2003.0,2002.9,4.72765129]
[1742712209715,2.37368,2003.0,2002.9,3.72896129]
[1742712209908,2.37368,2003.0,2002.9,3.72891883]
[1742712210518,1.375,2003.0,2002.9,3.72891883]
[1742712210717,1.375,2003.0,2002.9,4.72764883]
[1742712211712,1.375,2003.0,2002.9,3.2078]
[1742712212212,1.375,2003.0,2002.9,4.20653]
[1742712212514,1.375,2003.0,2002.9,4.72763167]
[1742712213412,1.375,2003.0,2002.9,4.20653]
[1742712216626,1.375,2003.0,2002.9,0.99873]
[1742712217418,1.375,2003.0,2002.9,2.32213]
[1742712219319,1.3855,2003.2,2003.0,0.99863]
[1742712219519,1.3855,2003.2,2003.1,2.6412]
[1742712219819,1.3855,2003.2,2003.1,3.63983]
[1742712220625,1.2976,2003.2,2003.1,3.63983]
[1742712222225,4.45785918,2003.4,2003.3,0.99853]
[1742712222418,5.72065918,2003.4,2003.3,0.99853]
[1742712225721,5.72065918,2003.4,2003.3,2.34763]
[1742712231831,1.2628,2003.4,2003.3,2.34763]
[1742712237332,1.2628,2003.4,2003.3,3.04193]
[1742712244141,1.3772,2003.7,2003.6,0.99838]
[1742712244340,2.6581,2003.7,2003.5,0.99839]
[1742712244542,3.65643,2003.7,2003.6,1.2651]
[1742712244745,1.3772,2003.7,2003.6,2.26348]
[1742712245936,2.37553,2003.7,2003.6,2.26348]
[1742712246136,1.3772,2003.7,2003.6,2.26348]
[1742712250742,2.37553,2003.7,2003.6,2.26348]
[1742712252339,2.37553,2003.7,2003.6,1.2651]
[1742712257538,3.65363,2003.7,2003.6,1.2651]
[1742712272761,3.65363,2003.7,2003.6,2.26348]
[1742712272957,2.96923,2003.7,2003.6,2.26348]
[1742712273258,1.2781,2003.7,2003.6,2.26348]
[1742712273655,1.2781,2003.7,2003.6,5.47128]
[1742712273860,1.2781,2003.7,2003.6,5.9924076]
[1742712274457,1.2781,2003.7,2003.6,5.99235038]
[1742712274964,1.2781,2003.7,2003.6,5.47128]
[1742712275263,1.2781,2003.7,2003.6,5.99235064]
[1742712275564,3.2078,2004.4,2003.6,7.49397064]
[1742712275751,1.3916,2004.2,2004.1,0.99813]
[1742712275956,2.38968,2004.2,2004.1,2.29393]
[1742712276263,1.3916,2004.2,2004.1,2.29393]
[1742712276459,1.3916,2004.2,2004.1,3.57273]
[1742712281167,1.3916,2004.2,2004.1,3.94835897]
[1742712292670,1.3916,2004.2,2003.7,5.70361]
[1742712292970,2.33295,2004.1,2003.9,2.31419]
[1742712293269,1.381,2004.0,2003.8,0.99823]
[1742712293471,1.381,2004.0,2003.9,0.99823]
[1742712293666,2.37918,2004.0,2003.9,0.36588561]
[1742712293968,1.381,2004.0,2003.9,0.99823]
[1742712297173,1.381,2004.0,2003.9,1.36925724]
[1742712298071,1.381,2004.0,2003.9,2.66075724]
[1742712300966,4.20581,2004.4,2003.9,1.66252724]
[1742712301273,2.5599,2004.3,2004.2,0.99808]
[1742712301474,3.55793,2004.3,2004.1,2.2795]
[1742712301672,1.2922,2004.3,2004.2,1.2814]
[1742712302069,2.29023,2004.3,2004.2,1.2814]
[1742712302673,1.2922,2004.3,2004.2,2.27948]
[1742712305880,0.6479,2004.3,2004.2,2.27948]
[1742712306082,2.28255,2004.5,2004.4,0.99798]
[1742712306279,1.2846,2004.5,2004.4,0.99798]
[1742712306482,2.28253,2004.5,2004.4,0.99798]
[1742712306681,2.28253,2004.5,2004.4,2.35728]
[1742712307182,2.28253,2004.5,2004.4,1.3593]
[1742712307590,1.2846,2004.5,2004.4,2.35728]
[1742712307891,2.28253,2004.5,2004.4,2.35728]
[1742712310890,2.28253,2004.5,2004.4,1.3593]
[1742712311493,2.28253,2004.5,2004.2,0.99804]
[1742712311494,0.99798,2004.4,2004.2,0.99804]
[1742712311692,0.99798,2004.4,2004.3,1.3768]
[1742712312498,0.99798,2004.4,2004.3,2.37483]
[1742712312697,0.99798,2004.4,2004.3,1.3768]
[1742712313498,0.99798,2004.4,2004.3,2.37483]
[1742712317508,1.3839,2004.4,2004.3,2.37483]
[1742712318106,2.38191,2004.4,2004.3,0.99803]
[1742712318308,2.38191,2004.4,2004.3,1.3175]
[1742712318508,2.38191,2004.4,2004.3,2.31553]
[1742712318708,2.38191,2004.4,2004.3,1.3175]
[1742712318909,1.3839,2004.4,2004.1,1.6732]
[1742712319114,2.26563,2004.3,2004.0,3.9047]
[1742712319307,1.2676,2004.2,2004.1,2.32278]
[1742712319507,1.9409,2004.2,2004.1,2.32278]
[1742712320411,1.9409,2004.2,2004.1,2.84300968]
[1742712320812,1.9409,2004.2,2004.1,2.32278]
[1742712321008,2.93898,2004.2,2004.1,2.32278]
[1742712321212,1.9409,2004.2,2004.1,2.32278]
[1742712322716,2.93898,2004.2,2004.1,2.32278]
[1742712323615,2.93898,2004.2,2004.1,1.3247]
[1742712324315,1.9409,2004.2,2004.1,0.99813]
[1742712324516,2.93898,2004.2,2004.1,1.3006]
[1742712325315,2.93898,2004.2,2004.1,1.82094678]
[1742712325909,2.93898,2004.2,2004.1,1.3006]
[1742712326216,2.93898,2004.2,2004.1,1.82097287]
[1742712327410,1.9409,2004.2,2004.1,2.81910287]
[1742712327808,1.2676,2004.2,2004.1,2.81910287]
[1742712328015,2.26568,2004.2,2004.1,2.81910287]
[1742712328216,1.2676,2004.2,2004.1,2.81910287]
[1742712328719,1.2676,2004.2,2004.1,2.81921673]
[1742712328919,1.2676,2004.2,2004.1,2.81921493]
[1742712330921,1.2676,2004.2,2004.1,2.81927382]
[1742712332814,1.2676,2004.2,2004.1,2.29873]
[1742712333013,1.2676,2004.2,2004.1,2.81932952]
[1742712333214,1.2676,2004.2,2004.1,2.81932804]
[1742712334817,1.2676,2004.2,2004.1,2.81932489]
[1742712335025,1.2676,2004.2,2004.1,2.81932542]
[1742712335823,0.6407,2004.4,2004.3,0.99803]
[1742712336020,1.2896,2004.3,2004.2,3.08634]
[1742712336221,1.2896,2004.3,2004.2,3.60692586]
[1742712336922,1.2896,2004.3,2004.2,3.08634]
[1742712340227,1.2896,2004.3,2004.2,3.60696952]
[1742712340722,1.2896,2004.3,2004.2,3.08634]
[1742712341316,1.2896,2004.3,2004.2,3.60655938]
[1742712344529,1.2896,2004.3,2004.2,3.6065659]
[1742712345924,1.2896,2004.3,2004.2,2.9170659]
[1742712346125,1.2896,2004.3,2004.2,2.39684]
[1742712347027,2.28763,2004.3,2004.2,2.39684]
[1742712347226,1.2896,2004.3,2004.2,2.39684]
[1742712349237,2.28765,2004.3,2004.2,0.99808]
[1742712349734,2.28765,2004.3,2004.1,2.29831]
[1742712349934,2.6155,2004.2,2004.1,2.29831]
[1742712350124,2.6155,2004.2,2004.1,2.81861158]
[1742712350329,2.6155,2004.2,2004.1,3.45611158]
[1742712350525,1.9803,2004.2,2004.1,3.45603282]
[1742712351029,1.3041,2004.2,2004.1,3.45603282]
[1742712354339,1.63318,2004.5,2004.3,0.99802]
[1742712354540,2.36848,2004.4,2004.3,0.99802]
[1742712355043,1.3705,2004.4,2004.3,1.68082]
[1742712361939,1.3705,2004.4,2004.3,2.20083694]
[1742712362246,2.36848,2004.4,2004.3,1.51803694]
[1742712362446,3.05428,2004.4,2004.3,0.99802]
[1742712362646,2.0563,2004.4,2004.3,0.99802]
[1742712364041,2.0563,2004.4,2004.1,0.6504]
[1742712364240,1.9534,2004.3,2004.2,1.51799082]
[1742712364440,1.9534,2004.3,2004.2,2.15948449]
[1742712364740,1.2758,2004.3,2004.2,2.15948449]
[1742712365942,1.2758,2004.3,2004.2,1.63958]
[1742712366240,1.2758,2004.3,2004.2,2.15940627]
[1742712367447,1.2758,2004.3,2004.2,3.44890627]
[1742712367942,1.2758,2004.3,2004.2,2.92908]
[1742712368136,1.2758,2004.3,2004.2,3.4487982]
[1742712370549,1.2758,2004.3,2004.2,3.44875662]
[1742712372048,1.2758,2004.3,2004.2,2.92908]
[1742712372353,1.2758,2004.3,2004.2,3.44875117]
[1742712374054,1.2758,2004.3,2004.2,2.92908]
[1742712374251,1.2758,2004.3,2004.2,3.44873124]
[1742712376054,1.2758,2004.3,2004.2,2.92908]
[1742712376251,1.2758,2004.3,2004.2,3.44869527]
[1742712378360,1.2758,2004.3,2004.2,3.44862146]
[1742712382259,1.2758,2004.3,2004.2,3.44878587]
[1742712382652,1.2758,2004.3,2004.2,3.44884227]
[1742712384361,1.2758,2004.3,2004.2,3.44896392]
[1742712386157,1.2758,2004.3,2004.2,3.44919472]
[1742712386662,1.2758,2004.3,2004.2,6.65699472]
[1742712388765,1.2758,2004.3,2004.2,6.65707819]
[1742712390264,1.2758,2004.3,2004.2,6.65713748]
[1742712394271,1.2758,2004.3,2004.2,6.65715988]
[1742712394867,1.2758,2004.3,2004.2,6.65717069]
[1742712396065,1.2758,2004.3,2004.2,4.72617069]
[1742712396469,2.5811,2004.3,2004.2,4.72625804]
[1742712397974,3.57913,2004.3,2004.2,4.72625804]
[1742712398277,3.57913,2004.3,2004.2,3.2078]
[1742712399569,0.99808,2004.2,2004.1,0.99813]
[1742712399770,2.34778,2004.2,2004.1,0.99813]
[1742712401476,2.34778,2004.2,2004.0,0.99814]
[1742712401777,1.9902,2004.1,2004.0,0.99814]
[1742712402475,1.9902,2004.1,2003.9,1.2666]
[1742712402676,2.0142,2004.0,2003.9,2.26483]
[1742712402878,2.0142,2004.0,2003.9,2.78474456]
[1742712403174,2.0142,2004.0,2003.9,2.78477386]
[1742712403764,2.0142,2004.0,2003.9,1.51817386]
[1742712406774,2.0142,2004.0,2003.9,1.51785565]
[1742712407380,2.0142,2004.0,2003.9,0.99823]
[1742712408080,2.0142,2004.0,2003.9,2.39013]
[1742712409282,3.01238,2004.0,2003.9,1.3919]
[1742712409580,3.01239,2004.0,2003.8,0.99825]
[1742712409781,2.0229,2003.9,2003.8,2.39015]
[1742712409984,2.0229,2003.9,2003.8,2.90972435]
[1742712410473,2.0229,2003.9,2003.8,2.39015]
[1742712417584,2.0229,2003.9,2003.8,1.3919]
[1742712417889,0.99828,2003.8,2003.7,3.2078]
[1742712418083,2.32548,2003.8,2003.7,4.5536]
[1742712418589,1.3272,2003.8,2003.7,5.55193]
[1742712419590,1.3272,2003.8,2003.7,6.22243]
[1742712427491,1.3272,2003.8,2003.7,6.74253682]
[1742712428196,1.3272,2003.8,2003.7,6.74265608]
[1742712430196,1.3272,2003.8,2003.7,6.74270411]
[1742712432205,1.3272,2003.8,2003.7,6.74273774]
[1742712434600,0.99835,2003.7,2003.5,0.99841]
[1742712434808,1.3761,2003.6,2003.5,2.98521]
[1742712435597,1.3761,2003.6,2003.5,2.98523]
[1742712438608,2.37448,2003.6,2003.5,1.9868]
[1742712438810,1.3761,2003.6,2003.5,2.98523]
[1742712445912,4.20591,2004.2,2003.6,2.49592]
[1742712446117,1.3295,2004.1,2003.7,6.34691]
[1742712446315,1.2974,2004.0,2003.9,0.99823]
[1742712446911,1.2974,2004.0,2003.9,2.30793]
[1742712453515,1.2974,2004.0,2003.9,0.99823]
[1742712454216,2.29558,2004.0,2003.9,0.99823]
[1742712456012,2.29558,2004.0,2003.9,2.34313]
[1742712470734,2.29558,2004.0,2003.9,1.3449]
[1742712471038,2.29558,2004.0,2003.9,2.34313]
[1742712478743,2.29558,2004.0,2003.9,1.3449]
[1742712481745,2.29558,2004.0,2003.9,2.34313]
[1742712481938,2.29558,2004.0,2003.9,1.3449]
[1742712482842,2.29558,2004.0,2003.9,2.34313]
[1742712488445,2.29558,2004.0,2003.9,1.3449]
[1742712490350,2.29558,2004.0,2003.9,2.34313]
[1742712490548,2.29558,2004.0,2003.9,1.3449]
[1742712491650,2.29558,2004.0,2003.9,2.34313]
[1742712491852,2.29558,2004.0,2003.9,1.3449]
[1742712497059,0.99827,2003.9,2003.7,3.8668]
[1742712497356,2.92497,2003.9,2003.8,1.334]
[1742712498548,2.92497,2003.9,2003.8,2.0169]
[1742712503860,1.284,2003.9,2003.8,3.01518]
[1742712504167,1.284,2003.9,2003.8,3.53578044]
[1742712505150,2.28223,2003.9,2003.8,2.53750044]
[1742712505358,1.284,2003.9,2003.8,3.53578044]
[1742712505758,1.284,2003.9,2003.8,3.01518]
[1742712505960,1.284,2003.9,2003.8,3.53577262]
[1742712509866,1.284,2003.9,2003.8,3.53603082]
[1742712511962,1.3122,2004.1,2004.0,0.99818]
[1742712512267,1.3713,2004.1,2004.0,0.99818]
[1742712512660,1.3713,2004.1,2004.0,2.34538]
[1742712525473,2.0171,2004.1,2004.0,2.34538]
[1742712535795,2.0171,2004.1,2004.0,0.99818]
[1742712541497,2.0171,2004.1,2004.0,1.5184864]
[1742712541892,2.0171,2004.1,2004.0,0.99818]
[1742712542199,2.0171,2004.1,2004.0,1.51848658]
[1742712543299,2.0171,2004.1,2004.0,2.17508658]
[1742712544002,2.0171,2004.1,2004.0,2.17507932]
[1742712545499,1.3713,2004.1,2004.0,2.17507932]
[1742712546003,1.3713,2004.1,2004.0,2.17512244]
[1742712548606,1.3713,2004.1,2004.0,3.43862244]
[1742712552909,4.45589055,2004.4,2004.3,0.99803]
[1742712553106,5.14039055,2004.4,2004.3,0.99803]
[1742712553705,5.82209055,2004.4,2004.3,0.99803]
[1742712553905,6.82007055,2004.4,2004.3,0.99803]
[1742712554613,8.09307055,2004.4,2004.3,2.33363]
[1742712556110,7.09509055,2004.4,2004.3,2.33363]
[1742712557303,8.09307055,2004.4,2004.3,2.33363]
[1742712559300,7.09509055,2004.4,2004.3,2.33363]
[1742712559914,6.41339055,2004.4,2004.3,2.33363]
[1742712565316,5.72889055,2004.4,2004.3,2.33363]
[1742712566210,1.273,2004.4,2004.3,2.33363]
[1742712566410,1.273,2004.4,2004.3,2.85315394]
[1742712566617,1.273,2004.4,2004.3,3.2467446]
[1742712566817,0.6529,2004.7,2004.6,0.99788]
[1742712567316,1.3283,2004.7,2004.6,0.99788]
[1742712567909,2.6125,2004.7,2004.6,2.29518]
[1742712573133,1.9596,2004.7,2004.6,2.29518]
[1742712573320,1.2842,2004.7,2004.6,2.98608]
[1742712575831,3.2078,2005.1,2005.0,0.99768]
[1742712576632,3.8693,2005.1,2005.0,0.99768]
[1742712577327,6.14143,2005.1,2005.0,2.39828]
[1742712577535,5.1438,2005.1,2005.0,2.39828]
[1742712579043,6.14143,2005.1,2005.0,2.39828]
[1742712579643,5.1438,2005.1,2005.0,1.77717576]
[1742712579837,0.99735,2005.7,2005.3,2.49384]
[1742712580142,1.3595,2005.6,2005.4,1.2803]
[1742712580443,0.99743,2005.5,2005.4,0.99746]
[1742712580632,0.99748,2005.4,2005.3,2.38762]
[1742712580836,3.70318,2005.4,2005.3,2.38762]
[1742712602058,2.7057,2005.4,2005.3,2.38762]
[1742712602365,1.3507,2005.4,2005.3,2.38762]
[1742712603868,0.99746,2005.5,2005.4,0.99748]
[1742712604055,3.8664,2005.6,2005.4,1.9384]
[1742712604461,0.99743,2005.5,2005.4,1.65134]
[1742712605164,3.8664,2005.6,2005.5,0.99743]
[1742712605351,4.86378,2005.6,2005.5,0.99743]
[1742712605864,4.86378,2005.6,2005.5,1.63113]
[1742712606564,6.24208,2005.6,2005.5,2.97783]
[1742712607865,6.24208,2005.6,2005.5,1.3467]
[1742712608262,7.03892298,2005.6,2005.5,1.3467]
[1742712608568,7.03892298,2005.6,2005.5,2.34413]
[1742712609866,0.99743,2005.5,2005.4,2.26595]
[1742712610067,2.29723,2005.5,2005.4,2.26595]
[1742712610263,2.29723,2005.5,2005.4,1.2685]
[1742712610564,2.29723,2005.5,2005.4,2.26598]
[1742712612060,2.29723,2005.5,2005.4,1.2685]
[1742712613269,0.99748,2005.4,2005.3,0.9975]
[1742712613568,2.98038,2005.4,2005.3,0.9975]
[1742712613770,3.2078,2005.9,2005.3,2.49383]
[1742712614067,36.61761102,2006.9,2005.8,0.99727]
[1742712614068,3.2078,2006.1,2005.8,0.99727]
[1742712614257,0.9973,2005.8,2005.7,0.99731]
[1742712614461,0.99726,2005.9,2005.8,0.99727]
[1742712614671,0.99728,2005.8,2005.7,2.28826831]
[1742712616471,0.99728,2005.8,2005.7,1.29097831]
[1742712616871,1.69128,2005.8,2005.7,1.29097831]
[1742712617565,1.69128,2005.8,2005.7,2.28830831]
[1742712618174,1.69128,2005.8,2005.7,1.29097831]
[1742712618360,1.69128,2005.8,2005.7,2.28830831]
[1742712618558,1.69128,2005.8,2005.7,1.29097831]
[1742712618771,4.89908,2005.8,2005.7,1.29097831]
[1742712618975,5.57678,2005.8,2005.7,1.29097831]
[1742712620672,1.3717,2005.8,2005.7,2.28830831]
[1742712621173,2.0817,2005.8,2005.7,2.28830831]
[1742712621376,1.3877,2005.8,2005.7,2.28830831]
[1742712621676,2.38498,2005.8,2005.7,2.28830831]
[1742712623480,1.3877,2005.8,2005.7,2.28830831]
[1742712623870,2.38498,2005.8,2005.7,2.28830831]
[1742712625980,2.38498,2005.8,2005.7,1.29097831]
[1742712626186,2.38498,2005.8,2005.7,0.00747831]
[1742712626478,5.59278,2005.8,2005.7,0.00747831]
[1742712632973,6.38839112,2005.8,2005.7,0.00747831]
[1742712633178,6.38839112,2005.8,2005.3,1.3795]
[1742712633179,0.99748,2005.4,2005.3,1.3795]
[1742712634185,0.99748,2005.4,2005.3,2.37703]
[1742712634486,2.29298,2005.4,2005.3,2.37703]
[1742712634886,2.29298,2005.4,2005.3,1.3795]
[1742712643798,1.2955,2005.4,2005.3,2.37703]
[1742712645288,2.29298,2005.4,2005.3,2.37703]
[1742712645594,2.29298,2005.4,2005.3,1.3795]
[1742712658396,2.29298,2005.4,2005.3,2.37703]
[1742712660303,2.29298,2005.4,2005.3,1.3795]
[1742712661903,2.29298,2005.4,2005.3,2.37703]
[1742712664092,2.29298,2005.4,2005.3,2.8963973]
[1742712664302,2.29298,2005.4,2005.3,2.37703]
[1742712664803,2.29298,2005.4,2005.3,2.89639164]
[1742712664999,0.00741414,2005.6,2005.3,5.10666164]
[1742712665204,1.28951414,2005.6,2005.5,0.99743]
[1742712665404,1.28951414,2005.6,2005.5,2.99303]
[1742712665697,2.28689414,2005.6,2005.5,2.99303]
[1742712666202,0.00741414,2005.6,2005.5,2.99303]
[1742712666605,0.00741414,2005.6,2005.5,3.5119072]
[1742712668398,0.00741414,2005.6,2005.5,3.51158424]
[1742712670111,0.00741414,2005.6,2005.5,3.51127003]
[1742712671899,0.00741414,2005.6,2005.5,2.99303]
[1742712672104,0.00741414,2005.6,2005.5,3.51107568]
[1742712673311,0.00741414,2005.6,2005.5,2.99303]
[1742712673714,0.00741414,2005.6,2005.5,3.51091089]
[1742712673913,0.00741414,2005.6,2005.5,2.99303]
[1742712674214,0.00741414,2005.6,2005.5,3.51090794]
[1742712674414,0.00741414,2005.6,2005.5,3.51088778]
[1742712675913,1.2887,2006.0,2005.9,0.99723]
[1742712677107,1.2887,2006.0,2005.9,2.26443]
[1742712692341,1.9677,2006.0,2005.9,2.26443]
[1742712695444,1.2887,2006.0,2005.9,2.26443]
[1742712695640,1.2887,2006.0,2005.9,3.45972036]
[1742712695844,0.6917,2006.2,2006.1,0.99713]
[1742712696039,2.079,2006.2,2006.1,0.99713]
[1742712696540,2.079,2006.2,2006.1,2.31673]
[1742712696740,2.079,2006.2,2006.1,3.00673]
[1742712698039,2.7449,2006.2,2006.1,3.00673]
[1742712698939,2.7449,2006.2,2006.1,1.3196]
[1742712699135,2.7449,2006.2,2006.1,2.31673]
[1742712702545,2.7449,2006.2,2006.1,3.01613]
[1742712705245,2.079,2006.2,2006.1,3.01613]
[1742712705437,1.3873,2006.2,2006.1,3.01613]
[1742712707146,1.3873,2006.2,2006.1,3.65723]
[1742712708746,1.3873,2006.2,2006.1,4.17549454]
[1742712709647,1.3873,2006.2,2006.1,4.17546588]
[1742712711748,1.3873,2006.2,2006.1,4.17529152]
[1742712712139,1.3873,2006.2,2006.1,4.17528391]
[1742712715651,1.3873,2006.2,2006.1,4.17522336]
[1742712717755,1.3873,2006.2,2006.1,4.17521517]
[1742712717948,2.0444,2006.2,2006.1,4.17521517]
[1742712719344,2.0444,2006.2,2006.1,3.65723]
[1742712721158,3.04148,2006.2,2006.1,1.3196]
[1742712721750,0.99718,2006.0,2005.9,0.9972]
[1742712722054,0.99718,2006.0,2005.9,2.91045117]
[1742712722451,1.3592,2006.0,2005.9,2.91045117]
[1742712722955,1.3592,2006.0,2005.9,2.91046889]
[1742712723356,1.3592,2006.0,2005.9,2.3923]
[1742712723556,1.3592,2006.0,2005.9,2.91047274]
[1742712725055,1.3592,2006.0,2005.9,2.91046249]
[1742712726257,1.3592,2006.0,2005.4,51.77649]
[1742712726448,0.647,2005.9,2005.7,2.30641]
[1742712726647,1.3876,2005.8,2005.7,0.99731]
[1742712726848,1.3876,2005.8,2005.7,1.39925322]
[1742712727055,1.67229,2006.0,2005.7,0.92017978]
[1742712727255,1.3143,2005.9,2005.8,0.99728]
[1742712727554,1.3143,2005.9,2005.8,2.34538]
[1742712727758,1.3143,2005.9,2005.8,2.86329673]
[1742712728846,1.3143,2005.9,2005.8,2.34538]
[1742712729057,1.3143,2005.9,2005.8,2.8632211]
[1742712729458,1.3143,2005.9,2005.8,2.86316544]
[1742712730257,0.6783,2006.1,2006.0,0.99718]
[1742712730457,1.67543,2006.1,2006.0,0.99718]
[1742712731153,1.67543,2006.1,2005.8,1.3481]
[1742712731362,1.67548,2006.1,2005.9,0.99722]
[1742712731560,1.2651,2006.0,2005.9,0.99722]
[1742712732062,0.99711,2006.2,2006.0,0.99718]
[1742712732357,1.9512,2006.1,2006.0,0.99718]
[1742712737965,1.9512,2006.1,2006.0,1.67468]
[1742712739369,1.2651,2006.1,2006.0,1.67468]
[1742712740070,1.2651,2006.1,2006.0,2.19222747]
[1742712740272,1.2651,2006.1,2006.0,1.67468]
[1742712743172,2.26223,2006.1,2006.0,0.99718]
[1742712743376,2.26227,2006.1,2005.9,2.27833]
[1742712743568,1.9699,2006.0,2005.9,2.27833]
[1742712744377,1.9699,2006.0,2005.9,2.79609891]
[1742712744774,1.9699,2006.0,2005.9,1.51499891]
[1742712744975,2.96708,2006.0,2005.9,0.99723]
[1742712745179,2.96708,2006.0,2005.8,0.99726]
[1742712745380,1.9792,2005.9,2005.8,0.99726]
[1742712745584,2.97643,2005.9,2005.8,2.91300039]
[1742712745785,1.9792,2005.9,2005.8,2.91300039]
[1742712747575,1.9792,2005.9,2005.8,2.91308271]
[1742712749082,1.9792,2005.9,2005.8,2.91311547]
[1742712750380,1.2815,2005.9,2005.8,2.91311547]
[1742712751085,1.2815,2005.9,2005.8,2.91309693]
[1742712752578,2.3398,2006.2,2005.8,1.91583693]
[1742712752783,1.3277,2006.1,2006.0,0.99718]
[1742712752986,1.3277,2006.1,2006.0,2.38478]
[1742712753873,1.3277,2006.1,2006.0,6.1105903]
[1742712755587,1.3277,2006.1,2006.0,6.11053055]
[1742712757088,1.3277,2006.1,2006.0,6.11045779]
[1742712760290,1.3277,2006.1,2006.0,6.11045379]
[1742712763094,1.3277,2006.1,2006.0,6.11042415]
[1742712763486,1.3277,2006.1,2006.0,6.11040479]
[1742712765004,1.3277,2006.1,2006.0,6.11039054]
[1742712769093,1.3277,2006.1,2006.0,6.11031949]
[1742712771102,1.3277,2006.1,2006.0,6.11030508]
[1742712771598,1.3277,2006.1,2006.0,6.11029851]
[1742712773193,1.3277,2006.1,2006.0,6.11029075]
[1742712774905,1.3277,2006.1,2006.0,2.90249075]